{"text_format":"3","workbook":"xlsx","n_sheets":1,"sheets":["Koszty remontu łazienki"],"not_rendered":{"defined_names":3},"read":"whole","date_system":"1900"}

{"sheet":"Koszty remontu łazienki","index":0,"n_rows":23,"n_cols":10,"rows_kept":23,"merged":[[1,1,2,3],[2,4,2,6],[2,7,2,9],[21,1,21,3],[21,4,21,6],[21,7,21,9],[22,1,22,3],[22,4,22,6],[22,7,22,9]]}
[null,"Arkusz kosztów remontu łazienki"]
[null,"UWAGA: Kolumny Różnica w tabeli będą pokazywać, czy kwoty rzeczywiste przekroczyły kwoty szacowane. Czerwone liczby oznaczają przekroczenie (wartość ujemna), a czarne — kwoty mniejsze od szacowanych (wartość dodatnia). "]
[{"$nulls":4},"Koszt pozycji (PLN)",null,null,"Całkowity koszt (PLN)"]
[null,"Obszar","Pozycje","Ilość","Szacowany","Rzeczywisty","Różnica","Szacowany ","Rzeczywisty ","Różnica "]
[null,"Wanna/prysznic","Wanna, żeliwna, 140 cm, standardowa",1,{"v":250,"d":"250.00 zł"},{"$f":"RANDBETWEEN(E5+2,E5+20)","v":{"v":256,"d":"256.00 zł"}},{"$f":"IFERROR(Koszty[[#This Row],[Szacowany]]-Koszty[[#This Row],[Rzeczywisty]], \"\")","v":{"v":-6,"d":"-6.00 zł"}},{"$f":"IFERROR(Koszty[[#This Row],[Ilość]]*Koszty[[#This Row],[Szacowany]], \"\")","v":{"v":250,"d":"250.00 zł"}},{"$f":"IFERROR(Koszty[[#This Row],[Ilość]]*Koszty[[#This Row],[Rzeczywisty]], \"\")","v":{"v":256,"d":"256.00 zł"}},{"$f":"IFERROR(Koszty[[#This Row],[Szacowany ]]-Koszty[[#This Row],[Rzeczywisty ]], \"\")","v":{"v":-6,"d":"-6.00 zł"}}]
[null,"Wanna/prysznic","Drzwi do kabiny prysznicowej, na zawiasach, standardowe",1,{"v":200,"d":"200.00 zł"},{"v":208,"d":"208.00 zł"},{"$f":"IFERROR(Koszty[[#This Row],[Szacowany]]-Koszty[[#This Row],[Rzeczywisty]], \"\")","v":{"v":-8,"d":"-8.00 zł"}},{"$f":"IFERROR(Koszty[[#This Row],[Ilość]]*Koszty[[#This Row],[Szacowany]], \"\")","v":{"v":200,"d":"200.00 zł"}},{"$f":"IFERROR(Koszty[[#This Row],[Ilość]]*Koszty[[#This Row],[Rzeczywisty]], \"\")","v":{"v":208,"d":"208.00 zł"}},{"$f":"IFERROR(Koszty[[#This Row],[Szacowany ]]-Koszty[[#This Row],[Rzeczywisty ]], \"\")","v":{"v":-8,"d":"-8.00 zł"}}]
[null,"Wanna/prysznic","Głowica prysznica, standardowa",1,{"v":50,"d":"50.00 zł"},{"v":59,"d":"59.00 zł"},{"$f":"IFERROR(Koszty[[#This Row],[Szacowany]]-Koszty[[#This Row],[Rzeczywisty]], \"\")","v":{"v":-9,"d":"-9.00 zł"}},{"$f":"IFERROR(Koszty[[#This Row],[Ilość]]*Koszty[[#This Row],[Szacowany]], \"\")","v":{"v":50,"d":"50.00 zł"}},{"$f":"IFERROR(Koszty[[#This Row],[Ilość]]*Koszty[[#This Row],[Rzeczywisty]], \"\")","v":{"v":59,"d":"59.00 zł"}},{"$f":"IFERROR(Koszty[[#This Row],[Szacowany ]]-Koszty[[#This Row],[Rzeczywisty ]], \"\")","v":{"v":-9,"d":"-9.00 zł"}}]
[null,"Wanna/prysznic","Obudowa ściany wanny, standardowa",1,{"v":200,"d":"200.00 zł"},{"v":216,"d":"216.00 zł"},{"$f":"IFERROR(Koszty[[#This Row],[Szacowany]]-Koszty[[#This Row],[Rzeczywisty]], \"\")","v":{"v":-16,"d":"-16.00 zł"}},{"$f":"IFERROR(Koszty[[#This Row],[Ilość]]*Koszty[[#This Row],[Szacowany]], \"\")","v":{"v":200,"d":"200.00 zł"}},{"$f":"IFERROR(Koszty[[#This Row],[Ilość]]*Koszty[[#This Row],[Rzeczywisty]], \"\")","v":{"v":216,"d":"216.00 zł"}},{"$f":"IFERROR(Koszty[[#This Row],[Szacowany ]]-Koszty[[#This Row],[Rzeczywisty ]], \"\")","v":{"v":-16,"d":"-16.00 zł"}}]
[null,"Szafki","Szafka na lekarstwa, 60 cm, dodatkowa",1,{"v":200,"d":"200.00 zł"},{"v":204,"d":"204.00 zł"},{"$f":"IFERROR(Koszty[[#This Row],[Szacowany]]-Koszty[[#This Row],[Rzeczywisty]], \"\")","v":{"v":-4,"d":"-4.00 zł"}},{"$f":"IFERROR(Koszty[[#This Row],[Ilość]]*Koszty[[#This Row],[Szacowany]], \"\")","v":{"v":200,"d":"200.00 zł"}},{"$f":"IFERROR(Koszty[[#This Row],[Ilość]]*Koszty[[#This Row],[Rzeczywisty]], \"\")","v":{"v":204,"d":"204.00 zł"}},{"$f":"IFERROR(Koszty[[#This Row],[Szacowany ]]-Koszty[[#This Row],[Rzeczywisty ]], \"\")","v":{"v":-4,"d":"-4.00 zł"}}]
[null,"Szafki","Modułowe szafki na kosmetyki, 75 cm, standardowe",2,{"v":100,"d":"100.00 zł"},{"v":114,"d":"114.00 zł"},{"$f":"IFERROR(Koszty[[#This Row],[Szacowany]]-Koszty[[#This Row],[Rzeczywisty]], \"\")","v":{"v":-14,"d":"-14.00 zł"}},{"$f":"IFERROR(Koszty[[#This Row],[Ilość]]*Koszty[[#This Row],[Szacowany]], \"\")","v":{"v":200,"d":"200.00 zł"}},{"$f":"IFERROR(Koszty[[#This Row],[Ilość]]*Koszty[[#This Row],[Rzeczywisty]], \"\")","v":{"v":228,"d":"228.00 zł"}},{"$f":"IFERROR(Koszty[[#This Row],[Szacowany ]]-Koszty[[#This Row],[Rzeczywisty ]], \"\")","v":{"v":-28,"d":"-28.00 zł"}}]
[null,"Blaty","Kafelki ceramiczne, dodatkowe (ilość w metrach)",5,{"v":22.5,"d":"22.50 zł"},{"v":33,"d":"33.00 zł"},{"$f":"IFERROR(Koszty[[#This Row],[Szacowany]]-Koszty[[#This Row],[Rzeczywisty]], \"\")","v":{"v":-10.5,"d":"-10.50 zł"}},{"$f":"IFERROR(Koszty[[#This Row],[Ilość]]*Koszty[[#This Row],[Szacowany]], \"\")","v":{"v":112.5,"d":"112.50 zł"}},{"$f":"IFERROR(Koszty[[#This Row],[Ilość]]*Koszty[[#This Row],[Rzeczywisty]], \"\")","v":{"v":165,"d":"165.00 zł"}},{"$f":"IFERROR(Koszty[[#This Row],[Szacowany ]]-Koszty[[#This Row],[Rzeczywisty ]], \"\")","v":{"v":-52.5,"d":"-52.50 zł"}}]
[null,"Krany","Kran, wanna, standardowe",1,{"v":90,"d":"90.00 zł"},{"v":94,"d":"94.00 zł"},{"$f":"IFERROR(Koszty[[#This Row],[Szacowany]]-Koszty[[#This Row],[Rzeczywisty]], \"\")","v":{"v":-4,"d":"-4.00 zł"}},{"$f":"IFERROR(Koszty[[#This Row],[Ilość]]*Koszty[[#This Row],[Szacowany]], \"\")","v":{"v":90,"d":"90.00 zł"}},{"$f":"IFERROR(Koszty[[#This Row],[Ilość]]*Koszty[[#This Row],[Rzeczywisty]], \"\")","v":{"v":94,"d":"94.00 zł"}},{"$f":"IFERROR(Koszty[[#This Row],[Szacowany ]]-Koszty[[#This Row],[Rzeczywisty ]], \"\")","v":{"v":-4,"d":"-4.00 zł"}}]
[null,"Krany","Kran, prysznic, pojedynczy uchwyt, standardowe",1,{"v":115,"d":"115.00 zł"},{"v":118,"d":"118.00 zł"},{"$f":"IFERROR(Koszty[[#This Row],[Szacowany]]-Koszty[[#This Row],[Rzeczywisty]], \"\")","v":{"v":-3,"d":"-3.00 zł"}},{"$f":"IFERROR(Koszty[[#This Row],[Ilość]]*Koszty[[#This Row],[Szacowany]], \"\")","v":{"v":115,"d":"115.00 zł"}},{"$f":"IFERROR(Koszty[[#This Row],[Ilość]]*Koszty[[#This Row],[Rzeczywisty]], \"\")","v":{"v":118,"d":"118.00 zł"}},{"$f":"IFERROR(Koszty[[#This Row],[Szacowany ]]-Koszty[[#This Row],[Rzeczywisty ]], \"\")","v":{"v":-3,"d":"-3.00 zł"}}]
[null,"Krany","Kran nad zlew, standardowy",1,{"v":95,"d":"95.00 zł"},{"v":110,"d":"110.00 zł"},{"$f":"IFERROR(Koszty[[#This Row],[Szacowany]]-Koszty[[#This Row],[Rzeczywisty]], \"\")","v":{"v":-15,"d":"-15.00 zł"}},{"$f":"IFERROR(Koszty[[#This Row],[Ilość]]*Koszty[[#This Row],[Szacowany]], \"\")","v":{"v":95,"d":"95.00 zł"}},{"$f":"IFERROR(Koszty[[#This Row],[Ilość]]*Koszty[[#This Row],[Rzeczywisty]], \"\")","v":{"v":110,"d":"110.00 zł"}},{"$f":"IFERROR(Koszty[[#This Row],[Szacowany ]]-Koszty[[#This Row],[Rzeczywisty ]], \"\")","v":{"v":-15,"d":"-15.00 zł"}}]
[null,"Pokrycie podłogi","Kafelki ceramiczne, standardowe (ilość w metrach kwadratowych)",35,{"v":12,"d":"12.00 zł"},{"v":18,"d":"18.00 zł"},{"$f":"IFERROR(Koszty[[#This Row],[Szacowany]]-Koszty[[#This Row],[Rzeczywisty]], \"\")","v":{"v":-6,"d":"-6.00 zł"}},{"$f":"IFERROR(Koszty[[#This Row],[Ilość]]*Koszty[[#This Row],[Szacowany]], \"\")","v":{"v":420,"d":"420.00 zł"}},{"$f":"IFERROR(Koszty[[#This Row],[Ilość]]*Koszty[[#This Row],[Rzeczywisty]], \"\")","v":{"v":630,"d":"630.00 zł"}},{"$f":"IFERROR(Koszty[[#This Row],[Szacowany ]]-Koszty[[#This Row],[Rzeczywisty ]], \"\")","v":{"v":-210,"d":"-210.00 zł"}}]
[null,"Wyposażenie","Wieszak na ręcznik, standardowy",2,{"v":15,"d":"15.00 zł"},{"v":30,"d":"30.00 zł"},{"$f":"IFERROR(Koszty[[#This Row],[Szacowany]]-Koszty[[#This Row],[Rzeczywisty]], \"\")","v":{"v":-15,"d":"-15.00 zł"}},{"$f":"IFERROR(Koszty[[#This Row],[Ilość]]*Koszty[[#This Row],[Szacowany]], \"\")","v":{"v":30,"d":"30.00 zł"}},{"$f":"IFERROR(Koszty[[#This Row],[Ilość]]*Koszty[[#This Row],[Rzeczywisty]], \"\")","v":{"v":60,"d":"60.00 zł"}},{"$f":"IFERROR(Koszty[[#This Row],[Szacowany ]]-Koszty[[#This Row],[Rzeczywisty ]], \"\")","v":{"v":-30,"d":"-30.00 zł"}}]
[null,"Wyposażenie","Uchwyt na papier toaletowy",1,{"v":10,"d":"10.00 zł"},{"v":14,"d":"14.00 zł"},{"$f":"IFERROR(Koszty[[#This Row],[Szacowany]]-Koszty[[#This Row],[Rzeczywisty]], \"\")","v":{"v":-4,"d":"-4.00 zł"}},{"$f":"IFERROR(Koszty[[#This Row],[Ilość]]*Koszty[[#This Row],[Szacowany]], \"\")","v":{"v":10,"d":"10.00 zł"}},{"$f":"IFERROR(Koszty[[#This Row],[Ilość]]*Koszty[[#This Row],[Rzeczywisty]], \"\")","v":{"v":14,"d":"14.00 zł"}},{"$f":"IFERROR(Koszty[[#This Row],[Szacowany ]]-Koszty[[#This Row],[Rzeczywisty ]], \"\")","v":{"v":-4,"d":"-4.00 zł"}}]
[null,"Oświetlenie","Oświetlenie podtynkowe, standardowe",4,{"v":25,"d":"25.00 zł"},{"v":29,"d":"29.00 zł"},{"$f":"IFERROR(Koszty[[#This Row],[Szacowany]]-Koszty[[#This Row],[Rzeczywisty]], \"\")","v":{"v":-4,"d":"-4.00 zł"}},{"$f":"IFERROR(Koszty[[#This Row],[Ilość]]*Koszty[[#This Row],[Szacowany]], \"\")","v":{"v":100,"d":"100.00 zł"}},{"$f":"IFERROR(Koszty[[#This Row],[Ilość]]*Koszty[[#This Row],[Rzeczywisty]], \"\")","v":{"v":116,"d":"116.00 zł"}},{"$f":"IFERROR(Koszty[[#This Row],[Szacowany ]]-Koszty[[#This Row],[Rzeczywisty ]], \"\")","v":{"v":-16,"d":"-16.00 zł"}}]
[null,"Zlewy","Sedes, standardowy",2,{"v":60,"d":"60.00 zł"},{"v":73,"d":"73.00 zł"},{"$f":"IFERROR(Koszty[[#This Row],[Szacowany]]-Koszty[[#This Row],[Rzeczywisty]], \"\")","v":{"v":-13,"d":"-13.00 zł"}},{"$f":"IFERROR(Koszty[[#This Row],[Ilość]]*Koszty[[#This Row],[Szacowany]], \"\")","v":{"v":120,"d":"120.00 zł"}},{"$f":"IFERROR(Koszty[[#This Row],[Ilość]]*Koszty[[#This Row],[Rzeczywisty]], \"\")","v":{"v":146,"d":"146.00 zł"}},{"$f":"IFERROR(Koszty[[#This Row],[Szacowany ]]-Koszty[[#This Row],[Rzeczywisty ]], \"\")","v":{"v":-26,"d":"-26.00 zł"}}]
[null,"Inne",null,1,{"v":20,"d":"20.00 zł"},{"v":25,"d":"25.00 zł"},{"$f":"IFERROR(Koszty[[#This Row],[Szacowany]]-Koszty[[#This Row],[Rzeczywisty]], \"\")","v":{"v":-5,"d":"-5.00 zł"}},{"$f":"IFERROR(Koszty[[#This Row],[Ilość]]*Koszty[[#This Row],[Szacowany]], \"\")","v":{"v":20,"d":"20.00 zł"}},{"$f":"IFERROR(Koszty[[#This Row],[Ilość]]*Koszty[[#This Row],[Rzeczywisty]], \"\")","v":{"v":25,"d":"25.00 zł"}},{"$f":"IFERROR(Koszty[[#This Row],[Szacowany ]]-Koszty[[#This Row],[Rzeczywisty ]], \"\")","v":{"v":-5,"d":"-5.00 zł"}}]
[null,"Suma częściowa",null,null,{"$f":"SUBTOTAL(109,Koszty[Szacowany])","v":{"v":1464.5,"d":"1,464.50 zł"}},{"$f":"SUBTOTAL(109,Koszty[Rzeczywisty])","v":{"v":1601,"d":"1,601.00 zł"}},{"$f":"SUBTOTAL(109,Koszty[Różnica])","v":{"v":-136.5,"d":"-136.50 zł"}},{"$f":"SUBTOTAL(109,Koszty[[Szacowany ]])","v":{"v":2212.5,"d":"2,212.50 zł"}},{"$f":"SUBTOTAL(109,Koszty[[Rzeczywisty ]])","v":{"v":2649,"d":"2,649.00 zł"}},{"$f":"SUBTOTAL(109,Koszty[[Różnica ]])","v":{"v":-436.5,"d":"-436.50 zł"}}]
[null,"Nieoczekiwane koszty (dodaj 30% kosztów szacowanych)",null,null,{"$f":"IFERROR(Koszty[[#Totals],[Szacowany]]*0.3, \"\")","v":{"v":439.34999999999997,"d":"439.35 zł"}},null,null,{"$f":"IFERROR(Koszty[[#Totals],[Szacowany ]]*0.3, \"\")","v":{"v":663.75,"d":"663.75 zł"}}]
[null,"Koszty całkowite",null,null,{"$f":"IFERROR(SUM(E21:E21), \"\")","v":{"v":1464.5,"d":"1,464.50 zł"}},null,null,{"$f":"IFERROR(SUM(Koszty[[#Totals],[Szacowany ]],Nadwyżka), \"\")","v":{"v":2876.25,"d":"2,876.25 zł"}}]